Cogmind - Beta 13 @@@ ROGUE MODE // 2024.05.06 @ 15:02:24 Player: luckinvolved Result: Destroyed by 55-3RJ(R) with Subdweller Machine Gun Performance ------------- Evolutions (0) 0 Regions Visited (2) 400 Robots Destroyed (30) 150 Value Destroyed (657) 657 Prototype IDs (0) 0 Alien Tech Used (0) 0 Bonus (0) 0 TOTAL SCORE: 1207 Bonus ------- None Cogmind --------- Core Integrity 0/250 Matter 300/300 Energy 196/200 System Corruption 0% Temperature Cool (2) Movement Treading (160) Location -10/Subcaves Parts ------- > --- POWER (1) -------- Subdweller Power Source > --- PROPULSION (2) --- Light Treads Light Treads > --- UTILITY (2) ------ Scrap Shield > --- WEAPON (2) ------- Subdweller Beam Cannon Subdweller Machine Gun > --- INVENTORY (5) ---- EM Pulse Gun Slug Cannon Grenade Launcher Grenade Launcher Dirty Datajack (20) Peak State ------------ > --- POWER ------------ Subdweller Power Source > --- PROPULSION ------- Light Treads Light Treads > --- UTILITY ---------- Huge Storage Unit Subdweller Optics > --- WEAPON ----------- Subdweller Beam Cannon Subdweller Machine Gun > --- INVENTORY -------- Ion Engine Ion Engine Light Treads Light Treads Compact Wheel Compact Wheel Heat Sink Small Storage Unit Structural Scanner Structural Scanner Seismic Detector Light Armor Plating Light Armor Plating EM Pulse Gun Subdweller Laser Assault Rifle Light Assault Rifle Light Assault Rifle Light Cannon Slug Cannon Grenade Launcher Grenade Launcher Dirty Datajack Mining Laser Hammer [Rating: 14] Favorites ----------- Power Ion Engine Engine Ion Engine Propulsion Light Treads Treads Light Treads Utility Huge Storage Unit Device Heat Sink Storage Huge Storage Unit Protection Scrap Shield Weapon Assault Rifle Energy Gun EM Pulse Gun Energy Cannon Subdweller Beam Cannon Ballistic Gun Assault Rifle Launcher Grenade Launcher Impact Weapon Hammer Build | -11 -10 -10 ------- Run | Yrd Mat Sub Slots Evolved . | . . . Power . | . . . Propulsion . | . . . Utility . | . . . Weapon . | . . . Parts Attached 35 | 6 11 18 Power 3 | 1 . 2 Engine 3 | 1 . 2 Core . | . . . Reactor . | . . . Propulsion 6 | 2 1 3 Treads 6 | 2 1 3 Leg . | . . . Wheel . | . . . Hover . | . . . Flight . | . . . Utility 15 | 1 5 9 Device 7 | . 2 5 Storage 4 | 1 3 . Processor . | . . . Hackware . | . . . Protection 4 | . . 4 Artifact . | . . . Weapon 11 | 2 5 4 Energy Gun 4 | 1 3 . Energy Cannon 2 | . . 2 Ballistic Gun 3 | 1 . 2 Ballistic Cannon . | . . . Launcher 1 | . 1 . Special Weapon . | . . . Impact Weapon 1 | . 1 . Slashing Weapon . | . . . Piercing Weapon . | . . . Special Melee Weapon . | . . . Unidentified Prototypes . | . . . Parts Lost 4 | . . 4 Power . | . . . Propulsion 2 | . . 2 Utility 1 | . . 1 Weapon 1 | . . 1 Highest Loss Streak 2 | . . 2 To Critical Strikes . | . . . Average Slot Usage (%) 97 | . 99 93 Engine 13 | . 14 13 Treads 27 | . 27 27 Device 11 | . 13 5 Storage 12 | . 14 8 Protection 2 | . . 8 Energy Gun 6 | . 8 . Energy Cannon 5 | . . 17 Ballistic Gun 12 | . 14 9 Impact Weapon 3 | . 5 . Naked Turns . | . . . Heaviest Build 104 | 14 90 104 Greatest Support 40 | 40 40 40 Greatest Overweight (x) 4 | . 4 2 Average Overweight (x) 1 | . 1 . Largest Inventory Capacity 25 | 8 25 25 Average Capacity 21 | 7 23 17 Most Carried 25 | 7 24 25 Average Carried 18 | 4 19 17 Final Capacity 25 | 8 25 5 Final Carried 24 | 7 24 5 Class Distribution -------------------- 72% | Mutant 15% | Scavenger-Mutant 11% | Subdweller-Mutant Dominant Class ---------------- Mutant | -10/Materials Scavenger-Mutant | -10/Subcaves Resources | -11 -10 -10 ----------- Run | Yrd Mat Sub Matter Collected 736 | 272 236 228 Remotely . | . . . Salvage Created 1066 | 78 597 391 Parts 68 | 3 36 29 Haulers Intercepted 2 | . 2 . Recyclers Shooed 2 | . 2 . Parts Field Recycled . | . . . Retrieved Matter . | . . . Parts Self-Destructed 20 | . . 20 Prevented . | . . . Kills | -11 -10 -10 ------- Run | Yrd Mat Sub Combat Hostiles Destroyed 19 | . 10 9 Guns 11 | . 8 3 Cannons 5 | . . 5 AOE 2 | . 2 . Classes Destroyed 8 | 1 6 1 Worker 2 | . 2 . Hauler 2 | . 2 . Recycler 3 | 1 2 . Operator 1 | . 1 . Watcher 3 | . 3 . Swarmer 7 | . 6 1 Grunt 4 | . 4 . Subdweller 8 | . . 8 Best Kill Streak 4 | 1 4 2 Combat Bots Only 4 | . 4 2 Max Kills in Single Turn 2 | 1 2 1 Gunslinging . | . . . Exploded 1 | . 1 . Melee . | . . . Uniques/NPCs Destroyed . | . . . Combat | -11 -10 -10 -------- Run | Yrd Mat Sub Hostile Shots Fired 73 | . 32 41 Missed 16 | . 8 8 Damage Taken 1044 | . 282 762 Core 263 | . 6 257 Absorbed by Shields . | . . . Core Remaining (%) 100 | 100 . . Volleys Fired 91 | 4 36 51 Largest 2 | 2 2 2 Hottest 160 | 60 60 160 Shots Fired 157 | 8 72 77 Gun 112 | 8 70 34 Cannon 43 | . . 43 Launcher 2 | . 2 . Special . | . . . Kinetic 69 | 4 36 29 Thermal 43 | . . 43 Explosive 2 | . 2 . Electromagnetic 43 | 4 34 5 Robot Hit Streak 11 | 3 9 11 Robot Miss Streak 3 | 1 3 3 Penetration Max . | . . . Secondary Targets . | . . . Shots Hit Robots 86 | 5 45 36 Core Hits 41 | 2 26 13 Critical Kills 1 | . . 1 Critical Parts Destroyed 1 | . 1 . Critical Strikes 3 | 1 1 1 Meltdown 1 | . . 1 Corrupt 1 | 1 . . Smash 1 | . 1 . Melee Attacks 17 | . 17 . Impact 17 | . 17 . Slashing . | . . . Piercing . | . . . Sneak Attacks 1 | . 1 . Combat Hostiles . | . . . Follow-up Attacks . | . . . Damage Inflicted 1697 | 59 1043 595 Guns 918 | 59 574 285 Cannons 310 | . . 310 Explosions 328 | . 328 . Melee 136 | . 136 . Ramming 5 | . 5 . Kinetic 571 | 47 281 243 Thermal 472 | . 162 310 Explosive 166 | . 166 . Electromagnetic 347 | 12 293 42 Impact 136 | . 136 . Slashing . | . . . Piercing . | . . . Highest Corruption . | . . . Average Corruption . | . . . Corruption Purged . | . . . Corruption Blocked . | . . . Overload Shots . | . . . Overflow Damage 75 | . 60 15 Projectiles 15 | . . 15 Explosions . | . . . Melee 60 | . 60 . Knockbacks . | . . . Impact . | . . . Kinetic . | . . . Secondary . | . . . Self-Inflicted Damage 55 | . 55 . Shots 1 | . 1 . Rammed 1 | . 1 . Targets Rammed 1 | . 1 . Kicked . | . . . Crushed . | . . . Highest Temperature 262 | . 11 262 Average Temperature 79 | . 6 83 Received Heat Transfer 441 | . 45 396 Siege Activations . | . . . Robots Corrupted 2 | . 2 . Combat Hostiles . | . . . Parts Fried 2 | . 2 . Impact Corruptions 3 | . 3 . Robots Melted 1 | . . 1 Combat Hostiles 1 | . . 1 Parts Melted . | . . . Heat Transferred 557 | . 150 407 Parts Sabotaged . | . . . Parts Stolen . | . . . Parts Stripped . | . . . Power Chain Reactions 3 | . 3 . Alert | -11 -10 -10 ------- Run | Yrd Mat Sub Peak Influence 255 | 5 255 . Initial 3 | . 3 . Average 53 | . 55 . Maximum Alert Level 1 | . 1 . Low Security (%) 94 | 100 94 . Level 1 5 | . 5 . Level 2 . | . . . Level 3 . | . . . Level 4 . | . . . Level 5 . | . . . High Security . | . . . Max Security . | . . . Squads Dispatched 1 | . 1 . Investigation . | . . . Extermination . | . . . Reinforcement 1 | . 1 . Assault . | . . . Garrison . | . . . Intercept . | . . . Searches Triggered . | . . . Construction Impeded . | . . . Haulers Reinforced . | . . . Active Scanning Responses . | . . . Cargo Convoy Interrupts . | . . . Stealth | -11 -10 -10 --------- Run | Yrd Mat Sub Distress Signals . | . . . Communications Jammed . | . . . Distress Signals . | . . . Times Spotted 41 | . 29 12 Peak Tracking Total 4 | . 4 3 Tactical Retreats 1 | . 1 . Traps | -11 -10 -10 ------- Run | Yrd Mat Sub Traps Triggered 3 | . 2 1 Indirectly . | . . . Trap Hack Attempts . | . . . Triggered . | . . . Disarmed . | . . . Reprogrammed . | . . . Reused . | . . . Traps Extracted . | . . . Installed . | . . . Triggered . | . . . Machines | -11 -10 -10 ---------- Run | Yrd Mat Sub Machines Disabled 3 | . 3 . Max in Single Turn 1 | . 1 . Machines Repaired . | . . . Machines Dismantled . | . . . Machines Sabotaged . | . . . Overloaded Fab Kills . | . . . Hacking | -11 -10 -10 --------- Run | Yrd Mat Sub Machines Accessed . | . . . Terminals . | . . . Fabricators . | . . . Repair Stations . | . . . Recycling Units . | . . . Scanalyzers . | . . . Garrison Access . | . . . Total Hacks . | . . . Successful . | . . . Failed . | . . . Catastrophic . | . . . Database Lockouts . | . . . Manual . | . . . Terminals . | . . . Fabricators . | . . . Repair Stations . | . . . Recycling Units . | . . . Scanalyzers . | . . . Garrison Access . | . . . Terminal Hacks . | . . . Fabricator Hacks . | . . . Repair Station Hacks . | . . . Recycling Unit Hacks . | . . . Scanalyzer . | . . . Garrison Access Hacks . | . . . Unauthorized Hacks . | . . . Terminals . | . . . Fabricators . | . . . Repair Stations . | . . . Recycling Units . | . . . Scanalyzers . | . . . Garrison Access . | . . . Data Cores Recovered . | . . . Used . | . . . Hacking Detections . | . . . Full Trace Events . | . . . Feedback Events . | . . . Feedback Blocked . | . . . Robot Schematics Acquired . | . . . Robots Built . | . . . Authchips . | . . . Time . | . . . Total Robot Build Rating . | . . . Part Schematics Acquired . | . . . Parts Built . | . . . Authchips . | . . . Time . | . . . Total Part Build Rating . | . . . Parts Repaired . | . . . Time . | . . . Parts Recycled . | . . . Recycled Matter . | . . . Retrieved Matter . | . . . Retrieved Components . | . . . Parts Scanalyzed . | . . . Part Schematics Acquired . | . . . Parts Damaged . | . . . Bothacking | -11 -10 -10 ------------ Run | Yrd Mat Sub Used RIF Installer . | . . . Robots Hacked . | . . . Non-combat . | . . . Combat . | . . . Robot Hacks Applied . | . . . Relay Couplers Released . | . . . Fabnet Peak Effective % . | . . . Robots Rewired . | . . . Allies Hacked . | . . . Hacks Repelled . | . . . Allies | -11 -10 -10 -------- Run | Yrd Mat Sub Total Allies . | . . . Largest Group . | . . . Highest-Rated Group . | . . . Highest-Rated Ally . | . . . Total Orders . | . . . Ally Attacks . | . . . Total Damage . | . . . Kills . | . . . Allies Corrupted . | . . . Allies Melted . | . . . Intel | -11 -10 -10 ------- Run | Yrd Mat Sub Robot Analysis Total . | . . . Derelict Logs Recovered 1 | . . 1 Drone Launches . | . . . Drone Recoveries . | . . . Exploration | -11 -10 -10 ------------- Run | Yrd Mat Sub Turns Passed 4667 | 118 3185 1364 Spaces Moved 1532 | 59 964 509 Core 5 | 5 . . Treads 1527 | 54 964 509 Legs . | . . . Wheels . | . . . Hover . | . . . Flight . | . . . Fastest Speed 50 | 50 160 160 Average Speed 275 | 150 306 231 Slowest Speed 480 | 160 480 320 Overloaded Moves . | . . . Propulsion Burnouts . | . . . Robots Hopped . | . . . Cave-ins Triggered . | . . . Exploration Rate (%) 44 | 4 100 28 Regions Visited 2 Branch Regions 1 Pre-discovered Areas 1 | . . 1 Known Exits Taken . | . . . Unknown Exits Taken 2 | 1 1 . Scrap Searched 7 | . . 7 Spaces Dug 15 | . 4 11 Terrain Destroyed 39 | . 25 14 Melee 4 | . 4 . Projectile 14 | . . 14 AOE 21 | . 21 . Terrain Rammed . | . . . Walls Destroyed . | . . . Machines Disabled . | . . . Actions | -11 -10 -10 --------- Run | Yrd Mat Sub Total 1786 | 77 1093 616 Wait 57 | 2 41 14 Move 1530 | 58 963 509 Hop . | . . . Pick Up 35 | 7 19 9 Fast Attach 16 | 6 3 7 Attach 4 | . . 4 Detach 2 | . . 2 Swap 15 | . 8 7 Drop 17 | . 5 12 Fire 91 | 4 36 51 Melee 17 | . 17 . Ram . | . . . Kick . | . . . Crush 1 | . 1 . Escape Stasis . | . . . Rewire . | . . . Trap . | . . . Miscellaneous 1 | . . 1 Route ------- -11/Scrapyard -10/Materials (discovered 6 exits: [*Mat x3] / [*Min x2] / [*Sub]) -10/Subcaves History --------- Turn | Location | Event 3 | -11/Scrapyard | Discovered new exit (range 15) 119 | -11/Scrapyard | Entered Materials 301 | -10/Materials | Build established: Mutant 323 | -10/Materials | Discovered new exit (range 13) 1175 | -10/Materials | Discovered new exit (range 15) 1474 | -10/Materials | Discovered new exit (range 11) 2202 | -10/Materials | Discovered new exit (range 6) 2387 | -10/Materials | Discovered new exit (range 5) 3279 | -10/Materials | Discovered new exit (range 9) 3304 | -10/Materials | Entered Subcaves 3393 | -10/Subcaves | Core integrity fell below 50% 3718 | -10/Subcaves | Build established: Scavenger-Mutant 3883 | -10/Subcaves | Ambushed by Subdwellers from Twisted Machinery 3985 | -10/Subcaves | Disturbed a concealed Subdweller 4252 | -10/Subcaves | A swath of the cavern ceiling suddenly collapsed 4444 | -10/Subcaves | Build established: Subdweller-Mutant 4489 | -10/Subcaves | Learned 2 Materials zone layouts 4490 | -10/Subcaves | Learned location of Zion (-7) 4490 | -10/Subcaves | Met a Zionite searching for "candidates" 4593 | -10/Subcaves | Core integrity fell below 20% 4664 | -10/Subcaves | A Subdweller sparked back to life 4664 | -10/Subcaves | A Subdweller sparked back to life 4664 | -10/Subcaves | A Subdweller sparked back to life 4668 | -10/Subcaves | Destroyed by 55-3RJ(R) with Subdweller Machine Gun Last Messages --------------- 04195_ Acquired Dirty Datajack. 04205_ Subatomizers dissect the Heat Sink. 04220_ Subatomizers dissect the Sub. Monowheel. A swath of the cavern ceiling suddenly collapses. 04414_ Subatomizers dissect the Sub. Laser. 04423_ Acquired 8 matter. 04440_ Subatomizers dissect the Sub. Laser. 04454_ Acquired 4 matter. 04489_ Acquired derelict log, extracted data. Data stored: Materials zone layouts (x2). 04490_ MM-J1D(z): "Hey you! It's really dangerous down here, I feel that you could die at any moment. For your health and safety might I suggest a trip to Zion?" World map updated: -7/Zion. 04581_ 49-2P8(R): "LEAVESUB!" 04595_ 49-2P8(R) destroyed. 04599_ Acquired 4 matter. 04664_ 11-3LX(R) creaks and sparks as it begins to move. 04664_ 55-3RJ(R) creaks and sparks as it begins to move. 04664_ YX-Q5Y(R) creaks and sparks as it begins to move. Map ----- +----------------------------------------------------+ | ?# #??# #???????????????????????????????????? | | ?# #?## ####????????????????????????????????? | | ## ###### ##???????????????????????????????? | | # ## #???????????????????????????????? | | ##???????????????????????????????? | | ##???????????????????????????????? | | #### #???????????????????????????????? | | #### ### ##???????????????????????????????? | | #?# ##???????????????????????????????? | | ### #???????????????????????????????? | | ### #???????????????????????????????? | | #### ## #???????????????????????????????? | | ###??###### #???????????????????????????????? | | ???###???# #???????????????????????????????? | | ???# ##?## ##???????????????????????????????? | | ???# ### ###????????????????????????????????? | | ???# *& =####???????????????????????????????? | | ???# &% %= ##??????????????????????????????? | | ??## #####[ ####???????????????????????????? | | ??# ##??# ####????????????????????????? | | ??#& #??## ##???????????????????????? | | ###%! ##???### ####????????????????????? | | # ####??????# ##???????????????????? | | " #????????## ### ##??????????????????? | | "" #???????## #### #??????????????????? | | " ???????# ####### @ #??????????????????? | | ??????## ## < R ### #??????????????????? | | #??????# #&< R #???? #??????????????????? | | ##??????## R&####????????????????????????? | | #?????????## #???????????????????????????? | | #???????????# # "" #???????????????????????????? | | ????????????## " #???????????????????????????? | | ????????????## #???????????????????????????? | | ????????????# ##???????????????????????????? | | ????????????#########????????????????????????????? | | ?????????????????????????????????????????????????? | | ?????????????????????????????????????????????????? | | ?????????????????????????????????????????????????? | | ?????????????????????????????????????????????????? | | ?????????????????????????????????????????????????? | | ?????????????????????????????????????????????????? | | ?????????????????????????????????????????????????? | | ?????????????????????????????????????????????????? | | ?????????????????????????????????????????????????? | | ?????????????????????????????????????????????????? | | ?????????????????????????????????????????????????? | | ?????????????????????????????????????????????????? | | ?????????????????????????????????????????????????? | | ?????????????????????????????????????????????????? | | ?????????????????????????????????????????????????? | +----------------------------------------------------+ Best States ------------- Heat Dissipation 35 Energy Generation 15 Energy Capacity 250 Matter Stores 300 Matter Capacity 300 Sight Range 21 Terrain Scan Density 10 Armor Coverage 800 Evasion (%) 40 Recoil Reduction 2 Item Schematics ----------------- None Robot Schematics ------------------ None Fabricated ------------ Nothing Alien Tech Used ----------------- None Achievements -------------- None Challenges ------------ None Game ------ Seed FlyingExplosiveStripper Manual? 0 Play Time 00:18:09 Cumulative 81.0 hours Start 2024.05.06 @ 14:44:52 End 2024.05.06 @ 15:02:24 Sessions 1 Manual Loads 0 Difficulty Rogue Special Mode None Game No. 119 Rogue 114 Adventurer 5 Explorer 0 Win Type - Total 2 Types 1/0/0/1/0/0/0/0/0 Lore% 41 Gallery% 61 Achievement% 48 Wizard Run 0 Options --------- Layout 0 ASCII 0 Keyboard 0 Movement Mouse Keybinds 0 Fullscreen 1 Font 24/Smallcaps Map View 76x50 Zoom Use 33% Tactical HUD 1 Map Filters NONE Filters NONE Steam 1 RUN: 0fd67ad4-52da-4278-b9be-a3ae39b4ae01